Cogmind - Beta 14 @@@ ROGUE MODE // 2024.10.04 @ 14:42:09 Player: Riksa Result: Destroyed by G-47 Trooper with Particle Gun Performance ------------- Evolutions (2) 1000 Regions Visited (4) 800 Robots Destroyed (57) 285 Value Destroyed (1355) 1355 Prototype IDs (6) 120 Alien Tech Used (0) 0 Bonus (234) 234 TOTAL SCORE: 3794 Bonus ------- High Alert Combat Kills 34 Entered Garrisons 200 Cogmind --------- Core Integrity 0/550 Matter 145/300 Energy 100/100 System Corruption 6% Temperature Cool (56) Movement Core (350) Ox6 Location -8/Garrison Parts ------- > --- POWER (1) -------- (None) > --- PROPULSION (4) --- (None) > --- UTILITY (4) ------ Large Storage Unit Improved Signal Interpreter > --- WEAPON (2) ------- (None) > --- INVENTORY (15) --- Light Ion Engine Improved Ion Engine Flight Unit Flight Unit Flight Unit Improved Heat Sink Hardened Medium Armor Plating Shield Generator Heavy EM Shotgun Heavy Particle Gun Heavy Assault Rifle Gauss Rifle Rocket Launcher Great Maul Peak State ------------ > --- POWER ------------ Cooled Ion Engine > --- PROPULSION ------- Airjet Airjet Airjet Aerolev Unit > --- UTILITY ---------- Large Storage Unit Improved Sensor Array Signal Interpreter Hacking Suite > --- WEAPON ----------- Heavy Particle Gun Gauss Rifle > --- INVENTORY -------- Light Ion Engine Improved Ion Engine Light Treads Light Treads Improved Heat Sink Structural Scanner Improved Signal Interpreter Hardened Medium Armor Plating Shield Generator Heavy EM Shotgun Heavy Assault Rifle Shotgun Grenade Launcher Rocket Launcher Great Maul [Rating: 35] Favorites ----------- Power Ion Engine Engine Ion Engine Propulsion Light Treads Treads Light Treads Leg Aluminum Leg Wheel Wheel Hover Unit Airjet Utility Large Storage Unit Device Structural Scanner Storage Large Storage Unit Processor Signal Interpreter Hackware Hacking Suite Protection Hardened Medium Armor Plating Weapon Shotgun Energy Gun Heavy Particle Gun Ballistic Gun Shotgun Ballistic Cannon Light Cannon Launcher Grenade Launcher Impact Weapon Great Maul Slashing Weapon Mining Claw Build | -11 -10 -9 -8 -8 ------- Run | Yrd Mat Mat Mat Gar Slots Evolved 4 | . . 2 2 . Power . | . . . . . Propulsion 2 | . . 1 1 . Utility 2 | . . 1 1 . Weapon . | . . . . . Parts Attached 78 | 5 24 20 26 3 Power 8 | 1 3 2 2 . Engine 8 | 1 3 2 2 . Core . | . . . . . Reactor . | . . . . . Propulsion 20 | 2 6 4 8 . Treads 10 | . 3 4 3 . Leg 1 | . 1 . . . Wheel 4 | 2 2 . . . Hover 5 | . . . 5 . Flight . | . . . . . Utility 15 | . 8 2 3 2 Device 9 | . 5 2 1 1 Storage 1 | . 1 . . . Processor 2 | . 1 . . 1 Hackware 1 | . . . 1 . Protection 2 | . 1 . 1 . Artifact . | . . . . . Weapon 35 | 2 7 12 13 1 Energy Gun 9 | 1 3 . 5 . Energy Cannon . | . . . . . Ballistic Gun 7 | 1 2 1 3 . Ballistic Cannon 1 | . . 1 . . Launcher 11 | . 1 6 3 1 Special Weapon . | . . . . . Impact Weapon 6 | . . 4 2 . Slashing Weapon 1 | . 1 . . . Piercing Weapon . | . . . . . Special Melee Weapon . | . . . . . Unidentified Prototypes 6 | . . . 6 . Parts Lost 16 | . 7 1 . 8 Power 3 | . 2 . . 1 Propulsion 7 | . 2 1 . 4 Utility 4 | . 2 . . 2 Weapon 2 | . 1 . . 1 Highest Loss Streak 8 | . 7 1 . 8 To Critical Strikes . | . . . . . Average Slot Usage (%) 94 | . 93 96 94 74 Engine 10 | . 12 11 9 7 Treads 23 | . 16 30 26 . Leg 1 | . 4 . . . Wheel 2 | . 6 . . . Hover 2 | . . . 6 27 Device 8 | . 11 11 3 7 Storage 9 | . 9 11 9 9 Processor 7 | . 3 11 9 9 Hackware 3 | . . . 9 8 Protection 2 | . . . 5 . Energy Gun 3 | . 3 . 6 . Ballistic Gun 9 | . 18 7 3 . Ballistic Cannon 2 | . . 7 . . Launcher 3 | . 2 4 3 6 Impact Weapon 1 | . . 2 3 . Peak Build Rating 35 | 5 10 14 35 31 Average Rating 15 | 2 8 12 24 23 On Entrance 11 | . 4 10 14 31 Naked Turns . | . . . . . Heaviest Build 43 | 5 32 33 43 32 Greatest Support 80 | 20 40 60 80 32 Greatest Overweight (x) 6 | . 1 . 2 6 Average Overweight (x) . | . . . . . Largest Inventory Capacity 15 | 5 15 15 15 15 Average Capacity 13 | 5 11 15 15 15 Most Carried 15 | 5 15 15 15 15 Average Carried 12 | 3 9 14 13 13 Final Capacity 15 | 5 15 15 15 15 Final Carried 15 | 5 15 15 14 14 Class Distribution -------------------- 53% | Scavenger-Mutant 46% | Mutant Dominant Class ---------------- Mutant | -10/Materials Scavenger-Mutant | -9/Materials Scavenger-Mutant | -8/Materials Mutant | -8/Garrison Resources | -11 -10 -9 -8 -8 ----------- Run | Yrd Mat Mat Mat Gar Matter Collected 1498 | 259 323 394 504 18 Remotely . | . . . . . Salvage Created 1437 | 44 412 361 538 82 Parts 103 | 1 25 39 29 9 Haulers Intercepted 1 | . 1 . . . Recyclers Shooed . | . . . . . Parts Field Recycled . | . . . . . Retrieved Matter . | . . . . . Parts Self-Destructed . | . . . . . Prevented . | . . . . . Kills | -11 -10 -9 -8 -8 ------- Run | Yrd Mat Mat Mat Gar Combat Hostiles Destroyed 39 | 1 8 15 8 7 Melee 2 | . 1 1 . . Guns 15 | 1 7 1 6 . Cannons 4 | . . 4 . . AOE 17 | . . 9 1 7 Classes Destroyed 12 | 1 3 7 1 . Worker 3 | . . 1 2 . Builder 4 | . . 3 1 . Tunneler 1 | . 1 . . . Hauler 1 | . 1 . . . Recycler 2 | . . 1 1 . Mechanic 1 | . . 1 . . Operator 1 | . . 1 . . Watcher 5 | . 1 1 3 . Swarmer 15 | . . 10 . 5 Grunt 16 | 1 8 3 2 2 Sentry 7 | . . 2 5 . Hunter 1 | . . . 1 . Best Kill Streak 13 | 1 2 13 4 7 Combat Bots Only 7 | 1 2 4 2 7 Max Kills in Single Turn 4 | 1 2 4 2 3 Gunslinging . | . . . . . Exploded 3 | . . 3 1 3 Melee 1 | . 1 1 . . Uniques/NPCs Destroyed . | . . . . . Combat | -11 -10 -9 -8 -8 -------- Run | Yrd Mat Mat Mat Gar Hostile Shots Fired 307 | 3 83 67 66 88 Missed 90 | 1 21 14 23 31 Damage Taken 2942 | 23 785 547 632 955 Core 819 | 11 192 55 93 468 Absorbed by Shields . | . . . . . Regen/Repaired (Parts) 82 | . . 82 . . Core Remaining (%) 66 | 95 18 86 . . Volleys Fired 113 | 3 38 22 41 9 Largest 2 | 1 2 2 2 1 Hottest 90 | 20 90 68 83 30 Shots Fired 174 | 3 63 40 58 10 Gun 123 | 3 63 8 49 . Cannon 17 | . . 17 . . Launcher 34 | . . 15 9 10 Special . | . . . . . Kinetic 94 | 3 53 25 13 . Thermal 36 | . . . 36 . Explosive 34 | . . 15 9 10 Electromagnetic 10 | . 10 . . . Robot Hit Streak 9 | 2 8 6 9 2 Robot Miss Streak 5 | 1 5 5 3 1 Penetration Max . | . . . . . Secondary Targets . | . . . . . Shots Hit Robots 127 | 2 50 27 44 4 Core Hits 95 | 2 21 34 27 11 Critical Kills 1 | . . 1 . . Critical Parts Destroyed 4 | . . . 4 . Critical Strikes 7 | . 1 1 5 . Destroy 1 | . . . 1 . Corrupt 1 | . 1 . . . Smash 5 | . . 1 4 . Melee Attacks 26 | . 12 8 6 . Impact 14 | . . 8 6 . Slashing 12 | . 12 . . . Piercing . | . . . . . Sneak Attacks 1 | . . 1 . . Combat Hostiles . | . . . . . Follow-up Attacks . | . . . . . Damage Inflicted 3730 | 28 791 1505 1005 401 Guns 1335 | 28 636 64 607 . Cannons 194 | . . 194 . . Explosions 1663 | . . 1029 233 401 Melee 491 | . 141 188 162 . Ramming 47 | . 14 30 3 . Kinetic 911 | 28 504 258 121 . Thermal 486 | . . . 486 . Explosive 1663 | . . 1029 233 401 Electromagnetic 132 | . 132 . . . Impact 350 | . . 188 162 . Slashing 141 | . 141 . . . Piercing . | . . . . . Highest Corruption 6 | . 1 3 6 6 Average Corruption 2 | . 1 2 2 6 Corruption Purged . | . . . . . Corruption Blocked . | . . . . . Effects 29 | . 5 7 13 4 Message Errors 5 | . 1 . 4 . Matter Fused 10 | . . 5 4 1 Heat Flow Errors 3 | . 1 . . 2 Energy Discharges 3 | . . 1 2 . Data Loss (minor) 2 | . 1 . 1 . Data Loss (major) 1 | . 1 . . . Misfires 5 | . 1 1 2 1 Overload Shots . | . . . . . Overflow Damage 237 | . 5 125 107 . Projectiles 9 | . . 9 . . Explosions 116 | . . 116 . . Melee 112 | . 5 . 107 . Knockbacks 6 | . . 5 1 . Impact 3 | . . 2 1 . Kinetic 3 | . . 3 . . Secondary . | . . . . . Self-Inflicted Damage 119 | . 4 35 . 80 Shots 8 | . . 4 . 4 Rammed 9 | . 2 6 1 . Targets Rammed 9 | . 2 6 1 . Kicked . | . . . . . Crushed . | . . . . . Highest Temperature 277 | . 241 12 140 277 Average Temperature 61 | . 74 8 31 125 Received Heat Transfer 1245 | 12 480 69 189 495 Siege Activations . | . . . . . Robots Corrupted 2 | . . . 2 . Combat Hostiles 1 | . . . 1 . Parts Fried 3 | . . . 3 . Impact Corruptions 6 | . . . 6 . Robots Melted . | . . . . . Combat Hostiles . | . . . . . Parts Melted 2 | . . . 2 . Heat Transferred 962 | . . . 962 . Parts Sabotaged . | . . . . . Parts Stolen . | . . . . . Parts Stripped . | . . . . . Power Chain Reactions . | . . . . . Alert | -11 -10 -9 -8 -8 ------- Run | Yrd Mat Mat Mat Gar Peak Influence 495 | 20 165 429 344 495 Initial 168 | . 13 45 145 168 Average 172 | 3 50 227 241 329 Maximum Alert Level 2 | . . 2 1 2 Low Security (%) 59 | 100 100 51 26 15 Level 1 34 | . . 32 73 45 Level 2 5 | . . 15 . 38 Level 3 . | . . . . . Level 4 . | . . . . . Level 5 . | . . . . . High Security . | . . . . . Max Security . | . . . . . Squads Dispatched 7 | . 2 4 1 . Investigation 5 | . 2 2 1 . Extermination . | . . . . . Reinforcement 2 | . . 2 . . Assault . | . . . . . Garrison . | . . . . . Intercept . | . . . . . Searches Triggered . | . . . . . Construction Impeded . | . . . . . Haulers Reinforced . | . . . . . Active Scanning Responses . | . . . . . Cargo Convoy Interrupts . | . . . . . Stealth | -11 -10 -9 -8 -8 --------- Run | Yrd Mat Mat Mat Gar Distress Signals 3 | . 2 . 1 . Communications Jammed . | . . . . . Distress Signals . | . . . . . Times Spotted 85 | 1 18 24 19 23 Peak Tracking Total 12 | 1 3 5 4 12 Tactical Retreats 5 | . 2 1 . 2 Traps | -11 -10 -9 -8 -8 ------- Run | Yrd Mat Mat Mat Gar Traps Triggered 5 | . 2 3 . . Indirectly . | . . . . . Trap Hack Attempts . | . . . . . Triggered . | . . . . . Disarmed . | . . . . . Reprogrammed . | . . . . . Reused . | . . . . . Traps Extracted . | . . . . . Installed . | . . . . . Triggered . | . . . . . Machines | -11 -10 -9 -8 -8 ---------- Run | Yrd Mat Mat Mat Gar Machines Disabled 4 | . . 3 . 1 Max in Single Turn 1 | . . 1 . 1 Machines Repaired . | . . . . . Machines Dismantled . | . . . . . Machines Sabotaged . | . . . . . Overloaded Fab Kills . | . . . . . Hacking | -11 -10 -9 -8 -8 --------- Run | Yrd Mat Mat Mat Gar Machines Accessed 13 | . 5 4 4 . Terminals 10 | . 4 3 3 . Fabricators . | . . . . . Repair Stations 2 | . 1 1 . . Recycling Units . | . . . . . Scanalyzers . | . . . . . Garrison Access 1 | . . . 1 . Total Hacks 47 | . 14 19 14 . Successful 26 | . 8 11 7 . Failed 21 | . 6 8 7 . Catastrophic 6 | . 2 2 2 . Database Lockouts . | . . . . . Manual 1 | . 1 . . . Terminals 40 | . 12 16 12 . Fabricators . | . . . . . Repair Stations 5 | . 2 3 . . Recycling Units . | . . . . . Scanalyzers . | . . . . . Garrison Access 2 | . . . 2 . Terminal Hacks 21 | . 7 9 5 . Record 12 | . 3 6 3 . Emergency Access Points 1 | . 1 . . . Alert Level 3 | . 1 1 1 . Locate Traps 1 | . 1 . . . Dispatch Records 1 | . . 1 . . Maintenance Status 1 | . 1 . . . Recall Reinforcements 1 | . . . 1 . Hauler Manifests 1 | . . 1 . . Fabricator Hacks . | . . . . . Repair Station Hacks 3 | . 1 2 . . Scan Component 2 | . 1 1 . . Repair 1 | . . 1 . . Recycling Unit Hacks . | . . . . . Scanalyzer . | . . . . . Garrison Access Hacks 2 | . . . 2 . Unlock Access 1 | . . . 1 . Coupler Status 1 | . . . 1 . Unauthorized Hacks . | . . . . . Terminals . | . . . . . Fabricators . | . . . . . Repair Stations . | . . . . . Recycling Units . | . . . . . Scanalyzers . | . . . . . Garrison Access . | . . . . . Data Cores Recovered . | . . . . . Used . | . . . . . Hacking Detections 12 | . 5 4 3 . Full Trace Events 10 | . 4 4 2 . Feedback Events 1 | . . . 1 . Corruption 1 | . . . 1 . Feedback Blocked . | . . . . . Robot Schematics Acquired . | . . . . . Robots Built . | . . . . . Authchips . | . . . . . Time . | . . . . . Total Robot Build Rating . | . . . . . Part Schematics Acquired . | . . . . . Parts Built . | . . . . . Authchips . | . . . . . Time . | . . . . . Total Part Build Rating . | . . . . . Parts Repaired 1 | . . 1 . . Time 26 | . . 26 . . Parts Recycled . | . . . . . Recycled Matter . | . . . . . Retrieved Matter . | . . . . . Retrieved Components . | . . . . . Parts Scanalyzed . | . . . . . Part Schematics Acquired . | . . . . . Parts Damaged . | . . . . . Bothacking | -11 -10 -9 -8 -8 ------------ Run | Yrd Mat Mat Mat Gar Used RIF Installer . | . . . . . Robots Hacked . | . . . . . Non-combat . | . . . . . Combat . | . . . . . Robot Hacks Applied . | . . . . . Relay Couplers Released . | . . . . . Fabnet Peak Effective % . | . . . . . Robots Rewired . | . . . . . Allies Hacked . | . . . . . Hacks Repelled . | . . . . . Allies | -11 -10 -9 -8 -8 -------- Run | Yrd Mat Mat Mat Gar Total Allies . | . . . . . Largest Group . | . . . . . Highest-Rated Group . | . . . . . Highest-Rated Ally . | . . . . . Total Orders . | . . . . . Ally Attacks . | . . . . . Total Damage . | . . . . . Kills . | . . . . . Allies Corrupted . | . . . . . Allies Melted . | . . . . . Intel | -11 -10 -9 -8 -8 ------- Run | Yrd Mat Mat Mat Gar Robot Analysis Total . | . . . . . Derelict Logs Recovered . | . . . . . Drone Launches . | . . . . . Drone Recoveries . | . . . . . Exploration | -11 -10 -9 -8 -8 ------------- Run | Yrd Mat Mat Mat Gar Turns Passed 3065 | 70 993 931 970 101 Spaces Moved 1759 | 70 537 479 556 117 Core 26 | 19 . . . 7 Treads 1253 | . 371 479 403 . Legs . | . . . . . Wheels 217 | 51 166 . . . Hover 263 | . . . 153 110 Flight . | . . . . . Fastest Speed 45 | 50 80 160 45 45 Average Speed 140 | 71 146 160 140 65 Slowest Speed 350 | 80 240 160 211 350 Overloaded Moves . | . . . . . Propulsion Burnouts . | . . . . . Robots Hopped . | . . . . . Cave-ins Triggered . | . . . . . Exploration Rate (%) 35 | 5 62 42 37 31 Regions Visited 4 Branch Regions . Pre-discovered Areas . | . . . . . Known Exits Taken 3 | . 1 1 1 . Unknown Exits Taken 1 | 1 . . . . Scrap Searched . | . . . . . Spaces Dug . | . . . . . Terrain Destroyed 187 | . . 99 48 40 Melee . | . . . . . Projectile 1 | . . . 1 . AOE 186 | . . 99 47 40 Terrain Rammed . | . . . . . Walls Destroyed . | . . . . . Machines Disabled . | . . . . . Actions | -11 -10 -9 -8 -8 --------- Run | Yrd Mat Mat Mat Gar Total 2141 | 87 657 587 675 135 Wait 30 | . 3 24 3 . Move 1755 | 69 536 478 555 117 Hop . | . . . . . Pick Up 78 | 9 29 16 21 3 Fast Attach . | . . . . . Attach 34 | 5 14 7 6 2 Detach 6 | 1 3 1 1 . Swap 44 | . 10 13 20 1 Drop 46 | . 10 12 21 3 Fire 113 | 3 38 22 41 9 Melee 26 | . 12 8 6 . Ram 1 | . 1 . . . Kick . | . . . . . Crush 8 | . 1 6 1 . Escape Stasis . | . . . . . Rewire . | . . . . . Trap . | . . . . . Miscellaneous . | . . . . . Route ------- -11/Scrapyard -10/Materials (discovered 3 exits: *Mat x2 / *Min) -9/Materials -8/Materials (discovered 2 exits: *Sto / Gar) -8/Garrison History --------- Turn | Location | Event 2 | -11/Scrapyard | Met Revision 17 50 | -11/Scrapyard | Discovered new exit (range 8) 71 | -11/Scrapyard | Entered Materials 267 | -10/Materials | Core integrity fell below 50% 319 | -10/Materials | Lost 7 parts (2p2n2u1w) 348 | -10/Materials | Build established: Mutant 561 | -10/Materials | Discovered new exit (range 14) 808 | -10/Materials | Identified exit to Materials 892 | -10/Materials | Discovered new exit (range 9) 904 | -10/Materials | Identified exit to Mines 945 | -10/Materials | Core integrity fell below 20% 1016 | -10/Materials | Discovered exit to Materials (range 6) 1064 | -10/Materials | Entered another Materials area 1064 | -9/Materials | Evolved 2 slots: Propulsion x1, Utility x1 1546 | -9/Materials | Build established: Scavenger-Mutant 1775 | -9/Materials | Repaired Lgt. Treads 1921 | -9/Materials | Discovered new exit (range 11) 1941 | -9/Materials | Identified exit to Materials 1995 | -9/Materials | Entered another Materials area 1995 | -8/Materials | Evolved 2 slots: Propulsion x1, Utility x1 2137 | -8/Materials | Discovered new exit (range 9) 2166 | -8/Materials | Identified exit to Storage 2963 | -8/Materials | Identified exit to Garrison 2965 | -8/Materials | Entered Garrison 2971 | -8/Garrison | Triggered checkpoint 2995 | -8/Garrison | Triggered checkpoint 3011 | -8/Garrison | Triggered checkpoint 3051 | -8/Garrison | Core integrity fell below 50% 3055 | -8/Garrison | Destroyed 7 combat bots 3057 | -8/Garrison | Core integrity fell below 20% 3066 | -8/Garrison | Destroyed by G-47 Trooper with Particle Gun Last Messages --------------- G-47 Trooper destroyed. Airjet destroyed. System corrupted: Matter fused (-6). Airjet destroyed. Grenade Launcher destroyed. Machine collapses. Cld. Ion Engine destroyed. Airjet destroyed. Machine collapses. Aerolev Unit destroyed. Machine collapses. Critical hit (Burn: +37). Structural Scanner destroyed. Critical hit (Burn: +37). The unstable cave ceiling collapses. G-47 Trooper destroyed. Hacking Suite destroyed. G-47 Trooper destroyed. Critical hit (Burn: +37). System corrupted: Heat flow error (+245). Map ----- +----------------------------------------------------+ | # *#????????? ???????????????????????????????????? | | #!!#??????? ???????????????????????????????????? | | ##""""## #??????????????????????????????????? | | [ #??????????????????????????????????? | | % #??????????????????????????????????? | | = #??????????????????????????????????? | | ## ## ^#??????????????????????????????????? | | ## ## #??????????????????????????????????? | | "??????????????????????????????????? | | "??????????????????????????????????? | | "??????????????????????????????????? | | "??????????????????????????????????? | | ## ## #?????????############?????????????? | | ## ## ###########""""""""""#?????????????? | | ##"!!!!!!"""#?????????????? | | ## ""#?????????????? | | #### ## !"#?????????????? | | # ##""""# ##?# # # !"#?????????????? | | # #?????# ??# = "#?????????????? | | # #?????# #??# *% #?????????????? | | # #??????# #??# # %!= "#?????????????? | | # #??????# #????# *%[# ! #?????????????? | | # #??????# #????# = # " " " #?????????????? | | # #??????# #????### #############?????????????? | | ???????# ####+### ###########???????????????? | | ???????# ggg @ #????????????? | | ###???????# g #????????????? | | ??????????####### ################ #????????????? | | ???????????????## ##?????????????????????????????? | | ???????????????# #?????????????????????????????? | | ???????????????# #?????????????????????????????? | | ???????????????# #?????????????????????????????? | | ???????????????## ##?????????????????????????????? | | ????????????????# #??????????????????????????????? | | ????????????????# #??????????????????????????????? | | ????????????????# #??????????????????????????????? | | ????????????????# ?????????????????????????????? | | ????????????????### ???????????????????????????? | | ??????????????????? #??????????????????????????? | | ????????????????????###??????????????????????????? | | ?????????????????????????????????????????????????? | | ?????????????????????????????????????????????????? | | ?????????????????????????????????????????????????? | | ?????????????????????????????????????????????????? | | ?????????????????????????????????????????????????? | | ?????????????????????????????????????????????????? | | ?????????????????????????????????????????????????? | | ?????????????????????????????????????????????????? | | ?????????????????????????????????????????????????? | | ?????????????????????????????????????????????????? | +----------------------------------------------------+ Best States ------------- Heat Dissipation 49 Energy Generation 14 Energy Capacity 280 Matter Stores 300 Matter Capacity 300 Sight Range 16 Robot Scan Range 15 Terrain Scan Range 16 Terrain Scan Density 10 Armor Coverage 225 Utility Shielding 33 Evasion (%) 56 Recoil Reduction 4 Offensive Hacking 10 Item Schematics ----------------- None Robot Schematics ------------------ None Fabricated ------------ Nothing Alien Tech Used ----------------- None Achievements -------------- Librarian Loot Pinata Maybe Next Time I'll Detach My Launcher Novice Programmer Oops Shopping List Challenges ------------ None Game ------ Seed ThrusterOpticalPrototype Manual? 0 Play Time 01:09:53 Cumulative 1.7 hours Start 2024.10.04 @ 13:30:16 End 2024.10.04 @ 14:42:09 Sessions 1 Manual Loads 0 Difficulty Rogue Special Mode None Game No. 2 Rogue 2 Adventurer 0 Explorer 0 Win Type - Total 0 Types 0/0/0/0/0/0/0/0/0 Lore% 1 Gallery% 4 Achievement% 5 Wizard Run 0 Options --------- Layout 1 ASCII 0 Keyboard 0 Movement Numpad Keybinds 0 Fullscreen 1 Font 24/Smallcaps Map View 50x35 Zoom Use 0% Tactical HUD 0 Map Filters NONE Filters NONE Steam 1 RUN: 5d38132a-db55-4b7a-9166-892163358148